[Event "Titled Tuesday Blitz December 27 Late 2022"]
[White "Remolar Gallen, Jose"]
[Black "Fishbein, Alexander"]
[WhiteFideId "2215187"]
[BlackFideId "2000377"]
[WhiteElo "2285"]
[BlackElo "2366"]
[Result "1-0"]
[Round "05"]
[TimeControl "180+2"]
[Date "2022.12.27"]
[WhiteClock "0:00:31"]
[BlackClock "0:00:10"]

1. d4 {[%clk 0:03:00]}  Nf6 {[%clk 0:02:55]} 2. c4 {[%clk 0:02:59]}  e6 {[%clk 0:02:55]} 3. Nc3 {[%clk 0:02:59]}  d5 {[%clk 0:02:54]} 4. cxd5 {[%clk 0:02:56]}  exd5 {[%clk 0:02:53]} 5. Bg5 {[%clk 0:02:56]}  c6 {[%clk 0:02:52]} 6. e3 {[%clk 0:02:56]}  Be6 {[%clk 0:02:49]} 7. Bd3 {[%clk 0:02:56]}  Nbd7 {[%clk 0:02:49]} 8. Nge2 {[%clk 0:02:56]}  h6 {[%clk 0:02:49]} 9. Bh4 {[%clk 0:02:56]}  Be7 {[%clk 0:02:49]} 10. Nf4 {[%clk 0:02:54]}  Bg4 {[%clk 0:02:45]} 11. f3 {[%clk 0:02:53]}  g5 {[%clk 0:02:37]} 12. Bf2 {[%clk 0:02:44]}  gxf4 {[%clk 0:02:36]} 13. fxg4 {[%clk 0:02:43]}  fxe3 {[%clk 0:02:36]} 14. Bxe3 {[%clk 0:02:44]}  Rg8 {[%clk 0:02:16]} 15. h3 {[%clk 0:02:41]}  h5 {[%clk 0:02:15]} 16. g5 {[%clk 0:02:36]}  Ne4 {[%clk 0:02:15]} 17. Bxe4 {[%clk 0:02:21]}  dxe4 {[%clk 0:02:13]} 18. h4 {[%clk 0:02:00]}  Qb6 {[%clk 0:02:01]} 19. O-O {[%clk 0:01:57]}  Qxb2 {[%clk 0:01:53]} 20. Nxe4 {[%clk 0:01:55]}  O-O-O {[%clk 0:01:47]} 21. Rxf7 {[%clk 0:01:44]}  Ba3 {[%clk 0:01:21]} 22. Rb1 {[%clk 0:01:37]}  Qxa2 {[%clk 0:01:21]} 23. Rb3 {[%clk 0:01:15]}  Nb6 {[%clk 0:01:02]} 24. Nc3 {[%clk 0:01:08]}  Qxb3 {[%clk 0:00:41]} 25. Qxb3 {[%clk 0:01:08]}  Bd6 {[%clk 0:00:38]} 26. Na4 {[%clk 0:00:51]}  Bc7 {[%clk 0:00:30]} 27. Nc5 {[%clk 0:00:49]}  Rge8 {[%clk 0:00:27]} 28. g6 {[%clk 0:00:47]}  Bg3 {[%clk 0:00:15]} 29. g7 {[%clk 0:00:35]}  Rxd4 {[%clk 0:00:11]} 30. Bxd4 {[%clk 0:00:31]}  Re1+ {[%clk 0:00:10]} 31. Rf1 {[%clk 0:00:31]} 1-0


[Site "https://www.chess.com"]

[Event "Titled Tuesday Blitz December 27 Late 2022"]
[White "Rustemov, Alexander"]
[Black "Djokic, Mihailo"]
[WhiteFideId "4119002"]
[BlackFideId "976440"]
[WhiteElo "2525"]
[BlackElo "2192"]
[Result "1-0"]
[Round "05"]
[TimeControl "180+2"]
[Date "2022.12.27"]
[WhiteClock "0:01:21"]
[BlackClock "0:00:02"]

1. d4 {[%clk 0:03:00]}  Nf6 {[%clk 0:02:59]} 2. c4 {[%clk 0:03:01]}  e6 {[%clk 0:03:00]} 3. Nf3 {[%clk 0:03:01]}  d5 {[%clk 0:02:59]} 4. Bg5 {[%clk 0:02:59]}  Be7 {[%clk 0:03:00]} 5. e3 {[%clk 0:02:59]}  a6 {[%clk 0:02:56]} 6. cxd5 {[%clk 0:02:50]}  exd5 {[%clk 0:02:52]} 7. Nc3 {[%clk 0:02:49]}  O-O {[%clk 0:02:48]} 8. Qc2 {[%clk 0:02:49]}  h6 {[%clk 0:02:46]} 9. Bh4 {[%clk 0:02:49]}  Be6 {[%clk 0:02:38]} 10. Bd3 {[%clk 0:02:48]}  Nbd7 {[%clk 0:02:34]} 11. O-O {[%clk 0:02:48]}  c5 {[%clk 0:02:32]} 12. dxc5 {[%clk 0:02:47]}  Nxc5 {[%clk 0:02:30]} 13. Rfd1 {[%clk 0:02:35]}  Rc8 {[%clk 0:02:21]} 14. Qe2 {[%clk 0:02:27]}  Nxd3 {[%clk 0:02:18]} 15. Rxd3 {[%clk 0:02:26]}  Qa5 {[%clk 0:02:01]} 16. Rad1 {[%clk 0:02:21]}  Rfd8 {[%clk 0:02:00]} 17. Nd4 {[%clk 0:02:18]}  Bg4 {[%clk 0:01:57]} 18. f3 {[%clk 0:02:16]}  Bh5 {[%clk 0:01:56]} 19. Nf5 {[%clk 0:02:10]}  Qc5 {[%clk 0:01:37]} 20. Nxe7+ {[%clk 0:02:08]}  Qxe7 {[%clk 0:01:37]} 21. Nxd5 {[%clk 0:02:08]}  Rxd5 {[%clk 0:01:09]} 22. Rxd5 {[%clk 0:02:06]}  g5 {[%clk 0:01:10]} 23. Bxg5 {[%clk 0:01:56]}  hxg5 {[%clk 0:01:08]} 24. Rxg5+ {[%clk 0:01:56]}  Bg6 {[%clk 0:01:08]} 25. h4 {[%clk 0:01:50]}  Kh7 {[%clk 0:01:04]} 26. e4 {[%clk 0:01:48]}  Rc5 {[%clk 0:00:51]} 27. Rxc5 {[%clk 0:01:43]}  Qxc5+ {[%clk 0:00:49]} 28. Qf2 {[%clk 0:01:44]}  Qa5 {[%clk 0:00:46]} 29. g4 {[%clk 0:01:40]}  Kg7 {[%clk 0:00:35]} 30. h5 {[%clk 0:01:37]}  Bh7 {[%clk 0:00:35]} 31. Qd2 {[%clk 0:01:37]}  Qe5 {[%clk 0:00:30]} 32. Kg2 {[%clk 0:01:36]}  Nxe4 {[%clk 0:00:19]} 33. fxe4 {[%clk 0:01:32]}  Bxe4+ {[%clk 0:00:20]} 34. Kh3 {[%clk 0:01:32]}  Qe6 {[%clk 0:00:02]} 35. Qd4+ {[%clk 0:01:28]}  Kh7 {[%clk 0:00:02]} 36. Rf1 {[%clk 0:01:21]} 1-0


[Site "https://www.chess.com"]

[Event "Titled Tuesday Blitz December 27 Late 2022"]
[White "Sos Andreu, Eric"]
[Black "Finkelstein, Alan"]
[WhiteFideId "22247017"]
[BlackFideId "30950961"]
[WhiteElo "2352"]
[BlackElo "2152"]
[Result "1-0"]
[Round "05"]
[TimeControl "180+2"]
[Date "2022.12.27"]
[WhiteClock "0:00:34"]
[BlackClock "0:00:17"]

1. d4 {[%clk 0:02:56]}  d5 {[%clk 0:02:59]} 2. c4 {[%clk 0:02:57]}  c6 {[%clk 0:02:59]} 3. Nf3 {[%clk 0:02:56]}  Nf6 {[%clk 0:02:58]} 4. e3 {[%clk 0:02:56]}  e6 {[%clk 0:02:58]} 5. Nbd2 {[%clk 0:02:56]}  Nbd7 {[%clk 0:02:59]} 6. Bd3 {[%clk 0:02:56]}  Bd6 {[%clk 0:02:59]} 7. O-O {[%clk 0:02:56]}  O-O {[%clk 0:02:59]} 8. e4 {[%clk 0:02:57]}  e5 {[%clk 0:02:34]} 9. exd5 {[%clk 0:02:51]}  cxd5 {[%clk 0:02:33]} 10. cxd5 {[%clk 0:02:50]}  exd4 {[%clk 0:02:21]} 11. Nxd4 {[%clk 0:02:49]}  Ne5 {[%clk 0:01:44]} 12. Be2 {[%clk 0:02:37]}  Nxd5 {[%clk 0:01:35]} 13. Ne4 {[%clk 0:02:33]}  Be7 {[%clk 0:01:34]} 14. Nf3 {[%clk 0:02:25]}  Nc6 {[%clk 0:01:23]} 15. Ng3 {[%clk 0:02:05]}  Be6 {[%clk 0:01:17]} 16. Re1 {[%clk 0:02:01]}  Qb6 {[%clk 0:01:15]} 17. a3 {[%clk 0:01:42]}  Rad8 {[%clk 0:01:06]} 18. Qc2 {[%clk 0:01:40]}  Rc8 {[%clk 0:00:48]} 19. Qb1 {[%clk 0:01:36]}  Bc5 {[%clk 0:00:40]} 20. Ne4 {[%clk 0:01:27]}  Bf5 {[%clk 0:00:38]} 21. Rf1 {[%clk 0:01:07]}  Rfe8 {[%clk 0:00:38]} 22. Nf6+ {[%clk 0:01:04]}  Nxf6 {[%clk 0:00:38]} 23. Qxf5 {[%clk 0:01:04]}  Rxe2 {[%clk 0:00:39]} 24. Qxc8+ {[%clk 0:01:02]}  Nd8 {[%clk 0:00:25]} 25. Be3 {[%clk 0:00:44]}  Bxe3 {[%clk 0:00:21]} 26. fxe3 {[%clk 0:00:44]}  Ng4 {[%clk 0:00:17]} 27. Rad1 {[%clk 0:00:34]} 1-0


[Site "https://www.chess.com"]

[Event "Titled Tuesday Blitz December 27 Late 2022"]
[White "Talibov, Shiroghlan"]
[Black "Movahed, Sina"]
[WhiteFideId "13429078"]
[BlackFideId "42520835"]
[WhiteElo "2359"]
[BlackElo "2340"]
[Result "1-0"]
[Round "05"]
[TimeControl "180+2"]
[Date "2022.12.27"]
[WhiteClock "0:00:56"]
[BlackClock "0:00:27"]

1. e4 {[%clk 0:03:00]}  c5 {[%clk 0:02:59]} 2. Nf3 {[%clk 0:03:00]}  d6 {[%clk 0:03:00]} 3. d4 {[%clk 0:03:00]}  cxd4 {[%clk 0:03:01]} 4. Nxd4 {[%clk 0:03:00]}  Nf6 {[%clk 0:03:02]} 5. Nc3 {[%clk 0:03:01]}  g6 {[%clk 0:03:02]} 6. Be3 {[%clk 0:03:01]}  Bg7 {[%clk 0:03:03]} 7. f3 {[%clk 0:03:01]}  a6 {[%clk 0:03:02]} 8. Qd2 {[%clk 0:02:57]}  h5 {[%clk 0:03:03]} 9. Be2 {[%clk 0:02:49]}  b5 {[%clk 0:03:01]} 10. a4 {[%clk 0:02:47]}  bxa4 {[%clk 0:02:58]} 11. Rxa4 {[%clk 0:02:46]}  O-O {[%clk 0:02:59]} 12. O-O {[%clk 0:02:45]}  Bb7 {[%clk 0:02:52]} 13. Rfa1 {[%clk 0:02:37]}  h4 {[%clk 0:02:34]} 14. Bh6 {[%clk 0:02:32]}  h3 {[%clk 0:02:27]} 15. Bxg7 {[%clk 0:02:31]}  Kxg7 {[%clk 0:02:27]} 16. g3 {[%clk 0:02:22]}  Nbd7 {[%clk 0:02:26]} 17. Qg5 {[%clk 0:02:19]}  e6 {[%clk 0:02:26]} 18. Rb4 {[%clk 0:02:12]}  Qc7 {[%clk 0:02:21]} 19. Qa5 {[%clk 0:02:06]}  Qc8 {[%clk 0:02:14]} 20. Rc4 {[%clk 0:02:03]}  Qb8 {[%clk 0:02:13]} 21. Qc7 {[%clk 0:02:03]}  Ne5 {[%clk 0:02:00]} 22. Nxe6+ {[%clk 0:02:01]}  Kg8 {[%clk 0:01:53]} 23. Nxf8 {[%clk 0:01:49]}  Qa7+ {[%clk 0:01:52]} 24. Kf1 {[%clk 0:01:34]}  Nxc4 {[%clk 0:01:05]} 25. Bxc4 {[%clk 0:01:32]}  d5 {[%clk 0:01:04]} 26. Nxg6 {[%clk 0:01:10]}  fxg6 {[%clk 0:00:49]} 27. Nxd5 {[%clk 0:01:05]}  Nxd5 {[%clk 0:00:41]} 28. Qxb7 {[%clk 0:01:00]}  Qe3 {[%clk 0:00:32]} 29. Qxd5+ {[%clk 0:01:00]}  Kg7 {[%clk 0:00:32]} 30. Qd3 {[%clk 0:01:01]}  Qc5 {[%clk 0:00:30]} 31. Qc3+ {[%clk 0:01:01]}  Kh6 {[%clk 0:00:29]} 32. Be2 {[%clk 0:01:02]}  Qb6 {[%clk 0:00:27]} 33. Qd2+ {[%clk 0:00:58]}  g5 {[%clk 0:00:27]} 34. Rd1 {[%clk 0:00:56]} 1-0


[Site "https://www.chess.com"]

[Event "Titled Tuesday Blitz December 27 Late 2022"]
[White "Wang, Alexander J"]
[Black "Moreno Perez, Tobias Sebastian"]
[WhiteFideId "30955270"]
[BlackFideId "186716"]
[WhiteElo "1815"]
[BlackElo "2256"]
[Result "1-0"]
[Round "05"]
[TimeControl "180+2"]
[Date "2022.12.27"]
[WhiteClock "0:01:02"]
[BlackClock "0:00:02"]

1. e4 {[%clk 0:03:00]}  Nc6 {[%clk 0:02:48]} 2. d4 {[%clk 0:02:57]}  d6 {[%clk 0:02:47]} 3. Nf3 {[%clk 0:02:56]}  Nf6 {[%clk 0:02:47]} 4. Nc3 {[%clk 0:02:56]}  g6 {[%clk 0:02:46]} 5. Bc4 {[%clk 0:02:55]}  Bg7 {[%clk 0:02:45]} 6. h3 {[%clk 0:02:55]}  O-O {[%clk 0:02:45]} 7. Be3 {[%clk 0:02:55]}  e6 {[%clk 0:02:36]} 8. Bb3 {[%clk 0:02:53]}  Na5 {[%clk 0:02:30]} 9. Qd2 {[%clk 0:02:51]}  Nxb3 {[%clk 0:02:29]} 10. axb3 {[%clk 0:02:52]}  e5 {[%clk 0:02:18]} 11. dxe5 {[%clk 0:02:43]}  dxe5 {[%clk 0:02:19]} 12. Qxd8 {[%clk 0:02:43]}  Rxd8 {[%clk 0:02:17]} 13. Bg5 {[%clk 0:02:43]}  c6 {[%clk 0:01:57]} 14. O-O {[%clk 0:02:29]}  Re8 {[%clk 0:01:53]} 15. Rfd1 {[%clk 0:02:22]}  Nd7 {[%clk 0:01:52]} 16. Be3 {[%clk 0:02:17]}  a6 {[%clk 0:01:35]} 17. Na4 {[%clk 0:02:15]}  b5 {[%clk 0:01:30]} 18. Nc5 {[%clk 0:02:10]}  Nxc5 {[%clk 0:01:31]} 19. Bxc5 {[%clk 0:02:11]}  Bf8 {[%clk 0:01:23]} 20. Bxf8 {[%clk 0:02:11]}  Kxf8 {[%clk 0:01:24]} 21. Rd6 {[%clk 0:02:10]}  Bb7 {[%clk 0:01:15]} 22. Rd7 {[%clk 0:02:09]}  Rab8 {[%clk 0:01:10]} 23. Ng5 {[%clk 0:02:04]}  Re7 {[%clk 0:00:59]} 24. Nxh7+ {[%clk 0:02:00]}  Ke8 {[%clk 0:00:59]} 25. Nf6+ {[%clk 0:01:56]}  Kf8 {[%clk 0:01:00]} 26. Rad1 {[%clk 0:01:50]}  Bc8 {[%clk 0:00:33]} 27. Rd8+ {[%clk 0:01:45]}  Kg7 {[%clk 0:00:33]} 28. Ne8+ {[%clk 0:01:42]}  Kh6 {[%clk 0:00:32]} 29. Nd6 {[%clk 0:01:39]}  Rc7 {[%clk 0:00:22]} 30. Ne8 {[%clk 0:01:28]}  Re7 {[%clk 0:00:20]} 31. R1d6 {[%clk 0:01:25]}  c5 {[%clk 0:00:11]} 32. Nf6 {[%clk 0:01:09]}  Ra8 {[%clk 0:00:08]} 33. Rh8+ {[%clk 0:01:06]}  Kg7 {[%clk 0:00:08]} 34. Rh7+ {[%clk 0:01:02]}  Kf8 {[%clk 0:00:02]} 35. Rd8+ {[%clk 0:01:02]} 1-0


[Site "https://www.chess.com"]

[Event "Titled Tuesday Blitz December 27 Late 2022"]
[White "Wu, Brandon"]
[Black "Averjanov, Alexey"]
[WhiteFideId "30909228"]
[BlackFideId "14109867"]
[WhiteElo "2123"]
[BlackElo "2399"]
[Result "1-0"]
[Round "05"]
[TimeControl "180+2"]
[Date "2022.12.27"]
[WhiteClock "0:00:58"]
[BlackClock "0:01:17"]

1. Nf3 {[%clk 0:03:00]}  c5 {[%clk 0:02:59]} 2. g3 {[%clk 0:02:59]}  Nc6 {[%clk 0:02:59]} 3. Bg2 {[%clk 0:02:57]}  g6 {[%clk 0:02:59]} 4. d4 {[%clk 0:02:54]}  cxd4 {[%clk 0:02:59]} 5. Nxd4 {[%clk 0:02:54]}  Bg7 {[%clk 0:03:00]} 6. Nb3 {[%clk 0:02:54]}  Nf6 {[%clk 0:03:00]} 7. O-O {[%clk 0:02:54]}  h5 {[%clk 0:03:00]} 8. h4 {[%clk 0:02:52]}  d6 {[%clk 0:03:01]} 9. Nc3 {[%clk 0:02:45]}  Bd7 {[%clk 0:02:59]} 10. e4 {[%clk 0:02:41]}  Qc8 {[%clk 0:02:58]} 11. Nd5 {[%clk 0:02:37]}  Bh3 {[%clk 0:02:52]} 12. Bg5 {[%clk 0:02:31]}  Bxg2 {[%clk 0:02:50]} 13. Kxg2 {[%clk 0:02:21]}  Nxd5 {[%clk 0:02:48]} 14. exd5 {[%clk 0:02:22]}  Ne5 {[%clk 0:02:45]} 15. Re1 {[%clk 0:02:09]}  O-O {[%clk 0:02:23]} 16. Bxe7 {[%clk 0:02:07]}  Re8 {[%clk 0:02:23]} 17. Bxd6 {[%clk 0:02:05]}  Nc4 {[%clk 0:02:24]} 18. Rxe8+ {[%clk 0:02:03]}  Qxe8 {[%clk 0:02:24]} 19. Bf4 {[%clk 0:01:58]}  Qe4+ {[%clk 0:02:22]} 20. Qf3 {[%clk 0:01:53]}  Qxc2 {[%clk 0:02:22]} 21. Rc1 {[%clk 0:01:51]}  Qxb2 {[%clk 0:02:16]} 22. Rxc4 {[%clk 0:01:49]}  Qxa2 {[%clk 0:02:17]} 23. d6 {[%clk 0:01:43]}  Qa6 {[%clk 0:01:43]} 24. Rc7 {[%clk 0:01:42]}  Rf8 {[%clk 0:01:29]} 25. d7 {[%clk 0:01:35]}  Bf6 {[%clk 0:01:26]} 26. Rc8 {[%clk 0:01:15]}  Qb6 {[%clk 0:01:22]} 27. Bc7 {[%clk 0:01:10]}  Qc6 {[%clk 0:01:18]} 28. Qxc6 {[%clk 0:01:05]}  bxc6 {[%clk 0:01:19]} 29. Rxf8+ {[%clk 0:00:57]}  Kxf8 {[%clk 0:01:20]} 30. d8=Q+ {[%clk 0:00:58]}  Bxd8 {[%clk 0:01:17]} 31. Bxd8 {[%clk 0:00:58]}  Ke8 {[%clk 0:01:17]} 32. Ba5 {[%clk 0:00:58]} 1-0


[Site "https://www.chess.com"]

[Event "Titled Tuesday Blitz December 27 Late 2022"]
[White "Yuan, Qingyu"]
[Black "Melkumyan, Hrant"]
[WhiteFideId "8609772"]
[BlackFideId "13302485"]
[WhiteElo "2373"]
[BlackElo "2645"]
[Result "0-1"]
[Round "05"]
[TimeControl "180+2"]
[Date "2022.12.27"]
[WhiteClock "0:00:04"]
[BlackClock "0:00:09"]

1. e4 {[%clk 0:03:00]}  c5 {[%clk 0:02:56]} 2. Nf3 {[%clk 0:03:00]}  Nc6 {[%clk 0:02:55]} 3. Bb5 {[%clk 0:03:00]}  g6 {[%clk 0:02:55]} 4. Bxc6 {[%clk 0:03:00]}  dxc6 {[%clk 0:02:55]} 5. d3 {[%clk 0:02:59]}  Qc7 {[%clk 0:02:56]} 6. Nc3 {[%clk 0:02:55]}  e5 {[%clk 0:02:55]} 7. O-O {[%clk 0:02:51]}  Nf6 {[%clk 0:02:50]} 8. a3 {[%clk 0:02:51]}  Bg4 {[%clk 0:02:45]} 9. h3 {[%clk 0:02:48]}  Bxf3 {[%clk 0:02:45]} 10. Qxf3 {[%clk 0:02:49]}  Nd7 {[%clk 0:02:46]} 11. Qg3 {[%clk 0:02:42]}  Bg7 {[%clk 0:02:44]} 12. f4 {[%clk 0:02:28]}  exf4 {[%clk 0:02:44]} 13. Bxf4 {[%clk 0:02:28]}  Ne5 {[%clk 0:02:44]} 14. Bg5 {[%clk 0:02:14]}  O-O {[%clk 0:02:39]} 15. Bf6 {[%clk 0:02:14]}  Rae8 {[%clk 0:02:39]} 16. Rf2 {[%clk 0:01:57]}  Re6 {[%clk 0:02:31]} 17. Bxg7 {[%clk 0:01:40]}  Kxg7 {[%clk 0:02:31]} 18. Raf1 {[%clk 0:01:40]}  Qd6 {[%clk 0:01:42]} 19. Ne2 {[%clk 0:01:30]}  Ree8 {[%clk 0:01:31]} 20. Kh1 {[%clk 0:01:19]}  f6 {[%clk 0:01:29]} 21. b3 {[%clk 0:01:08]}  Rf7 {[%clk 0:01:28]} 22. a4 {[%clk 0:01:08]}  b6 {[%clk 0:01:27]} 23. Nf4 {[%clk 0:00:58]}  Kh8 {[%clk 0:01:23]} 24. Ne2 {[%clk 0:00:56]}  Ref8 {[%clk 0:01:20]} 25. Ng1 {[%clk 0:00:53]}  Qe7 {[%clk 0:01:17]} 26. Nf3 {[%clk 0:00:51]}  Nxf3 {[%clk 0:01:10]} 27. Rxf3 {[%clk 0:00:50]}  Kg7 {[%clk 0:01:10]} 28. R1f2 {[%clk 0:00:44]}  b5 {[%clk 0:01:06]} 29. a5 {[%clk 0:00:39]}  c4 {[%clk 0:01:02]} 30. bxc4 {[%clk 0:00:28]}  bxc4 {[%clk 0:01:03]} 31. Rf5 {[%clk 0:00:22]}  Qa3 {[%clk 0:00:53]} 32. e5 {[%clk 0:00:12]}  Qa1+ {[%clk 0:00:43]} 33. Rf1 {[%clk 0:00:11]}  Qc3 {[%clk 0:00:30]} 34. exf6+ {[%clk 0:00:08]}  Kg8 {[%clk 0:00:31]} 35. R5f2 {[%clk 0:00:05]}  cxd3 {[%clk 0:00:26]} 36. cxd3 {[%clk 0:00:05]}  Qxa5 {[%clk 0:00:26]} 37. Qd6 {[%clk 0:00:04]}  Qd5 {[%clk 0:00:23]} 38. Qxd5 {[%clk 0:00:04]}  cxd5 {[%clk 0:00:24]} 39. g4 {[%clk 0:00:04]}  a5 {[%clk 0:00:17]} 40. g5 {[%clk 0:00:04]}  a4 {[%clk 0:00:18]} 41. Rf4 {[%clk 0:00:04]}  Ra7 {[%clk 0:00:17]} 42. Ra1 {[%clk 0:00:04]}  a3 {[%clk 0:00:17]} 43. Ra2 {[%clk 0:00:04]}  Rb8 {[%clk 0:00:17]} 44. Rff2 {[%clk 0:00:04]}  Kf7 {[%clk 0:00:17]} 45. Rfe2 {[%clk 0:00:04]}  Rb3 {[%clk 0:00:16]} 46. Red2 {[%clk 0:00:05]}  Ke6 {[%clk 0:00:16]} 47. Kg2 {[%clk 0:00:05]}  Kf5 {[%clk 0:00:16]} 48. Rf2+ {[%clk 0:00:05]}  Ke6 {[%clk 0:00:17]} 49. Rfe2+ {[%clk 0:00:05]}  Kf7 {[%clk 0:00:15]} 50. Red2 {[%clk 0:00:05]}  h6 {[%clk 0:00:14]} 51. h4 {[%clk 0:00:05]}  hxg5 {[%clk 0:00:14]} 52. hxg5 {[%clk 0:00:06]}  Ke6 {[%clk 0:00:12]} 53. Kg3 {[%clk 0:00:06]}  Rb4 {[%clk 0:00:07]} 54. Re2+ {[%clk 0:00:07]}  Kf7 {[%clk 0:00:07]} 55. Rh2 {[%clk 0:00:06]}  Kg8 {[%clk 0:00:05]} 56. Rae2 {[%clk 0:00:06]}  Rb8 {[%clk 0:00:05]} 57. Ra2 {[%clk 0:00:04]}  Rb3 {[%clk 0:00:04]} 58. Rhd2 {[%clk 0:00:02]}  Ra4 {[%clk 0:00:03]} 59. Kf3 {[%clk 0:00:02]}  Kf7 {[%clk 0:00:04]} 60. Kg3 {[%clk 0:00:02]}  Rbb4 {[%clk 0:00:03]} 61. Re2 {[%clk 0:00:02]}  Rg4+ {[%clk 0:00:04]} 62. Kh3 {[%clk 0:00:02]}  Rxg5 {[%clk 0:00:05]} 63. Re7+ {[%clk 0:00:02]}  Kxf6 {[%clk 0:00:05]} 64. Rae2 {[%clk 0:00:02]}  Rh5+ {[%clk 0:00:05]} 65. Kg3 {[%clk 0:00:02]}  Rg5+ {[%clk 0:00:06]} 66. Kh3 {[%clk 0:00:03]}  Rf5 {[%clk 0:00:05]} 67. R2e6+ {[%clk 0:00:02]}  Kg5 {[%clk 0:00:05]} 68. Rg7 {[%clk 0:00:03]}  Rh4+ {[%clk 0:00:04]} 69. Kg3 {[%clk 0:00:03]}  Rg4+ {[%clk 0:00:04]} 70. Kh3 {[%clk 0:00:03]}  Rf3+ {[%clk 0:00:05]} 71. Kh2 {[%clk 0:00:04]}  Rf2+ {[%clk 0:00:05]} 72. Kh3 {[%clk 0:00:04]}  Rf3+ {[%clk 0:00:06]} 73. Kh2 {[%clk 0:00:05]}  Kh6 {[%clk 0:00:06]} 74. Ree7 {[%clk 0:00:02]}  Rxd3 {[%clk 0:00:06]} 75. Rh7+ {[%clk 0:00:02]}  Kg5 {[%clk 0:00:06]} 76. Re5+ {[%clk 0:00:03]}  Kf6 {[%clk 0:00:06]} 77. Rhe7 {[%clk 0:00:04]}  Re4 {[%clk 0:00:04]} 78. R7e6+ {[%clk 0:00:04]}  Kg7 {[%clk 0:00:04]} 79. Re7+ {[%clk 0:00:05]}  Kh6 {[%clk 0:00:05]} 80. Rxe4 {[%clk 0:00:05]}  dxe4 {[%clk 0:00:05]} 81. Rxe4 {[%clk 0:00:06]}  Rb3 {[%clk 0:00:05]} 82. Ra4 {[%clk 0:00:06]}  g5 {[%clk 0:00:05]} 83. Kg2 {[%clk 0:00:05]}  Kg6 {[%clk 0:00:06]} 84. Kf2 {[%clk 0:00:05]}  Kf5 {[%clk 0:00:07]} 85. Ke2 {[%clk 0:00:05]}  g4 {[%clk 0:00:07]} 86. Kf2 {[%clk 0:00:05]}  Kg5 {[%clk 0:00:07]} 87. Kg2 {[%clk 0:00:05]}  Kh4 {[%clk 0:00:08]} 88. Kh2 {[%clk 0:00:05]}  Rb2+ {[%clk 0:00:08]} 89. Kg1 {[%clk 0:00:06]}  a2 {[%clk 0:00:09]} 90. Ra3 {[%clk 0:00:04]}  Rb1+ {[%clk 0:00:09]} 0-1


[Site "https://www.chess.com"]

[Event "Titled Tuesday Blitz December 27 Late 2022"]
[White "Zakarian, David"]
[Black "Kho, Darrell"]
[WhiteFideId "13301276"]
[BlackFideId "1019317"]
[WhiteElo "2306"]
[BlackElo "2075"]
[Result "1-0"]
[Round "05"]
[TimeControl "180+2"]
[Date "2022.12.27"]
[WhiteClock "0:00:40"]
[BlackClock "0:00:01"]

1. d4 {[%clk 0:03:00]}  f5 {[%clk 0:02:57]} 2. Bg5 {[%clk 0:03:00]}  g6 {[%clk 0:02:56]} 3. Nc3 {[%clk 0:02:59]}  d5 {[%clk 0:02:42]} 4. h4 {[%clk 0:02:58]}  Nf6 {[%clk 0:02:36]} 5. e3 {[%clk 0:02:50]}  Be6 {[%clk 0:02:34]} 6. Be2 {[%clk 0:02:37]}  Nc6 {[%clk 0:02:27]} 7. h5 {[%clk 0:02:34]}  Ne4 {[%clk 0:02:18]} 8. Nxe4 {[%clk 0:02:31]}  fxe4 {[%clk 0:02:17]} 9. hxg6 {[%clk 0:02:31]}  Bg7 {[%clk 0:02:15]} 10. Rxh7 {[%clk 0:02:29]}  Rxh7 {[%clk 0:02:15]} 11. gxh7 {[%clk 0:02:30]}  Qd6 {[%clk 0:02:14]} 12. Bg4 {[%clk 0:01:42]}  Bxg4 {[%clk 0:01:58]} 13. Qxg4 {[%clk 0:01:43]}  Qb4+ {[%clk 0:01:58]} 14. Kf1 {[%clk 0:01:33]}  Qxb2 {[%clk 0:01:54]} 15. Rd1 {[%clk 0:01:33]}  Qxc2 {[%clk 0:01:38]} 16. Bh6 {[%clk 0:01:32]}  Bh8 {[%clk 0:01:23]} 17. Re1 {[%clk 0:01:27]}  Rd8 {[%clk 0:01:08]} 18. Nh3 {[%clk 0:01:19]}  Qd3+ {[%clk 0:01:02]} 19. Kg1 {[%clk 0:01:19]}  e5 {[%clk 0:00:37]} 20. Qe6+ {[%clk 0:01:13]}  Ne7 {[%clk 0:00:37]} 21. dxe5 {[%clk 0:01:00]}  Qc3 {[%clk 0:00:37]} 22. Rf1 {[%clk 0:01:00]}  Qxe5 {[%clk 0:00:37]} 23. Qg8+ {[%clk 0:00:54]}  Kd7 {[%clk 0:00:26]} 24. Qg4+ {[%clk 0:00:55]}  Qf5 {[%clk 0:00:17]} 25. Qg3 {[%clk 0:00:48]}  Qg6 {[%clk 0:00:11]} 26. Qxg6 {[%clk 0:00:46]}  Nxg6 {[%clk 0:00:11]} 27. Nf4 {[%clk 0:00:44]}  Nxf4 {[%clk 0:00:11]} 28. Bxf4 {[%clk 0:00:45]}  c6 {[%clk 0:00:10]} 29. g4 {[%clk 0:00:43]}  Ke6 {[%clk 0:00:09]} 30. Kg2 {[%clk 0:00:41]}  Rd7 {[%clk 0:00:07]} 31. Rh1 {[%clk 0:00:42]}  Rg7 {[%clk 0:00:06]} 32. Rh6+ {[%clk 0:00:41]}  Kf7 {[%clk 0:00:06]} 33. Kh3 {[%clk 0:00:41]}  Rg6 {[%clk 0:00:06]} 34. Rh5 {[%clk 0:00:40]}  Kg7 {[%clk 0:00:02]} 35. Be5+ {[%clk 0:00:39]}  Kf8 {[%clk 0:00:01]} 36. Bxh8 {[%clk 0:00:40]} 1-0


[Site "https://www.chess.com"]